bitfinex/quotes_BTCUSD_20250108
["timestamp","ask_amount","ask_price","bid_price","bid_amount"]
[1736336207035,0.52657,94966.0,94960.0,0.210613]
[1736336207241,0.52657,94966.0,94962.0,0.21061]
[1736336207453,0.52657,94966.0,94965.0,0.210603]
[1736336207665,0.52657,94966.0,94965.0,0.31490276]
[1736336207859,0.52657,94966.0,94965.0,0.32711056]
[1736336208290,0.52657,94966.0,94965.0,0.3272637]
[1736336208661,0.52253463,94966.0,94965.0,0.3302637]
[1736336208856,0.52253463,94966.0,94965.0,0.42324407]
[1736336209179,0.52253463,94966.0,94965.0,0.42024407]
[1736336209353,0.52253463,94966.0,94965.0,0.49856407]
[1736336209697,0.52253463,94966.0,94965.0,0.50456407]
[1736336209900,0.52045268,94966.0,94965.0,0.50456407]
[1736336210103,0.52045268,94966.0,94965.0,0.62756407]
[1736336210320,0.39235268,94966.0,94965.0,0.62756407]
[1736336210812,0.31425268,94966.0,94965.0,0.66306407]
[1736336211292,0.22637431,94966.0,94965.0,0.76546017]
[1736336211541,0.1198465,94966.0,94965.0,0.76146017]
[1736336211785,0.0001706,94997.0,94990.0,0.210548]
[1736336212020,0.0001706,94997.0,94996.0,0.31483476]
[1736336212492,0.0001706,94997.0,94996.0,0.39921518]
[1736336213422,0.0001706,94997.0,94996.0,0.32104832]
[1736336213630,0.0001706,94997.0,94996.0,0.49784235]
[1736336213838,0.0001706,94997.0,94996.0,0.11051332]
[1736336213839,0.5265106,94997.0,94996.0,0.11051332]
[1736336214041,0.5265106,94997.0,94996.0,0.18727332]
[1736336214418,0.5265106,94997.0,94996.0,0.19227332]
[1736336214827,0.5265106,94997.0,94996.0,0.18727332]
[1736336215233,0.5265106,94997.0,94996.0,0.18927332]
[1736336215440,0.5265106,94997.0,94996.0,0.17334925]
[1736336215675,0.5265106,94997.0,94996.0,0.25010925]
[1736336215869,0.6265106,94997.0,94996.0,0.00621356]
[1736336216024,0.6265106,94997.0,94996.0,0.01021356]
[1736336216228,0.6265106,94997.0,94996.0,0.00415314]
[1736336216700,0.6265106,94997.0,94996.0,0.1084529]
[1736336216701,0.5265106,94997.0,94996.0,0.1084529]
[1736336217095,0.5265106,94997.0,94996.0,0.00415314]
[1736336217096,0.6265106,94997.0,94996.0,0.00415314]
[1736336217291,0.67258382,94997.0,94996.0,0.00415314]
[1736336217496,0.67208382,94997.0,94996.0,0.00415314]
[1736336217901,0.75108382,94997.0,94996.0,0.00015314]
[1736336218309,0.75108382,94997.0,94996.0,0.00415314]
[1736336218720,0.65108382,94997.0,94996.0,0.00415314]
[1736336218921,0.96161582,94997.0,94996.0,0.00015314]
[1736336219134,0.75108382,94997.0,94996.0,0.00015314]
[1736336219559,0.75108382,94997.0,94996.0,0.07691314]
[1736336219934,0.65208382,94997.0,94996.0,0.07691314]
[1736336220139,0.65208382,94997.0,94996.0,0.08460445]
[1736336220340,0.52688382,94997.0,94996.0,0.18890421]
[1736336220546,0.52688382,94997.0,94996.0,0.19496463]
[1736336221312,0.52588382,94997.0,94996.0,0.19496463]
[1736336222302,0.52588382,94997.0,94996.0,0.11051332]
[1736336222640,0.52588382,94997.0,94996.0,0.00921356]
[1736336222641,0.62588382,94997.0,94996.0,0.00921356]
[1736336222827,0.210548,94990.0,94983.0,0.07676]
[1736336223029,0.00131606,94989.0,94984.0,0.10429976]
[1736336223265,0.52719988,94989.0,94984.0,0.11037701]
[1736336223469,0.52588382,94989.0,94984.0,0.00607725]
[1736336223672,0.52588382,94989.0,94985.0,0.10429976]
[1736336223918,0.00131603,94988.0,94985.0,0.10429976]
[1736336224244,0.52719985,94988.0,94986.0,0.00607444]
[1736336224467,0.210592,94970.0,94955.0,0.210626]
[1736336224734,0.210592,94970.0,94937.0,0.07676]
[1736336224735,0.1,94955.0,94937.0,0.07676]
[1736336224916,0.1,94939.0,94937.0,0.07676]
[1736336225111,0.00131675,94938.0,94937.0,0.07676]
[1736336225321,0.00131675,94938.0,94937.0,0.07691323]
[1736336225322,0.62720057,94938.0,94937.0,0.07691323]
[1736336225473,0.62588382,94938.0,94937.0,0.00015323]
[1736336225675,0.81205464,94938.0,94937.0,0.00015323]
[1736336225880,0.75108382,94938.0,94937.0,0.00015323]
[1736336226080,0.65108382,94938.0,94937.0,0.00015323]
[1736336226450,0.75108382,94938.0,94937.0,0.00015323]
[1736336226567,0.75208382,94938.0,94937.0,0.00015323]
[1736336226770,0.65208382,94938.0,94937.0,0.10445299]
[1736336226977,0.57498382,94938.0,94937.0,0.28551275]
[1736336227170,0.57498382,94938.0,94937.0,0.18121299]
[1736336227377,0.57598382,94938.0,94937.0,0.18121299]
[1736336227734,0.52688382,94938.0,94937.0,0.18121299]
[1736336228723,0.52588382,94938.0,94937.0,0.18121299]
[1736336228946,0.52588382,94938.0,94937.0,0.10445299]
[1736336229119,0.52688382,94938.0,94937.0,0.25792218]
[1736336229320,0.52688382,94938.0,94937.0,0.18121299]
[1736336229752,0.52588382,94938.0,94937.0,0.18121299]
[1736336230514,0.52588382,94938.0,94937.0,0.18521299]
[1736336231862,0.62588382,94938.0,94937.0,0.10845299]
[1736336232067,0.83654682,94938.0,94937.0,0.01039459]
[1736336232316,0.83654682,94938.0,94937.0,0.01239459]
[1736336232932,0.83654682,94938.0,94937.0,0.01039459]
[1736336233340,0.52588382,94938.0,94937.0,0.01039459]
[1736336233541,0.52588382,94938.0,94937.0,0.24093664]
[1736336233748,0.62588382,94938.0,94937.0,0.19145435]
[1736336233963,0.52588382,94938.0,94937.0,0.19145435]
[1736336236862,0.70778382,94938.0,94937.0,0.11819435]
[1736336237279,0.75618382,94938.0,94937.0,0.01089459]
[1736336237729,0.75618382,94938.0,94937.0,0.00365323]
[1736336237937,0.75618382,94938.0,94931.0,2.20278047]
[1736336237938,0.310677,94932.0,94931.0,2.20278047]
[1736336238142,1.05716082,94932.0,94931.0,2.20293372]
[1736336238347,1.16146058,94932.0,94931.0,2.085604]
[1736336240381,0.96316082,94932.0,94931.0,2.086604]
[1736336240821,0.96316082,94932.0,94931.0,2.085604]
[1736336241625,0.96316082,94932.0,94931.0,2.084604]
[1736336242205,0.95716082,94932.0,94931.0,2.083604]
[1736336242625,0.96316082,94932.0,94931.0,2.084604]
[1736336243055,0.96316082,94932.0,94931.0,2.083604]
[1736336243249,0.95716082,94932.0,94931.0,2.083604]
[1736336243427,0.96216082,94932.0,94931.0,2.083604]
[1736336243652,1.06646058,94932.0,94931.0,1.90734442]
[1736336243853,1.49278058,94932.0,94931.0,1.3191424]
[1736336244059,1.48778058,94932.0,94931.0,0.83241928]
[1736336244257,1.63108558,94932.0,94931.0,0.73533314]
[1736336244594,1.63108558,94932.0,94931.0,0.36855071]
[1736336244771,1.74138558,94932.0,94931.0,0.15082363]
[1736336245036,0.45,94929.0,94928.0,0.00011]
[1736336245224,0.45,94929.0,94928.0,0.00015041]
[1736336245225,2.39960458,94929.0,94928.0,0.00015041]
[1736336245430,4.15306658,94929.0,94928.0,0.00015041]
[1736336245555,4.15306658,94929.0,94897.0,0.00076202]
[1736336245556,0.02150546,94843.0,94839.0,0.07396]
[1736336245757,0.52588382,94843.0,94841.0,0.210879]
[1736336245967,0.52588382,94843.0,94842.0,0.10429976]
[1736336246172,0.52588382,94843.0,94842.0,0.11532016]
[1736336246575,0.52588382,94843.0,94842.0,0.18928016]
[1736336246820,0.52588382,94843.0,94842.0,0.11532016]
[1736336247222,0.39793608,94843.0,94842.0,0.16351918]
[1736336247472,0.39893608,94843.0,94842.0,0.16351918]
[1736336247850,0.39893608,94843.0,94842.0,0.23747918]
[1736336248665,0.25175253,94843.0,94842.0,0.44097372]
[1736336248901,0.25175253,94843.0,94842.0,0.36701372]
[1736336248902,0.25075253,94843.0,94842.0,0.36701372]
[1736336249039,0.25075253,94843.0,94842.0,0.59097372]
[1736336249583,0.25075253,94843.0,94842.0,0.51701372]
[1736336249809,0.1,94906.0,94842.0,0.51701372]
[1736336249810,0.02150546,94884.0,94848.0,0.07849454]
[1736336250034,0.02150546,94876.0,94866.0,0.10429976]
[1736336250228,0.02150546,94867.0,94866.0,0.10429976]
[1736336250430,0.54853546,94867.0,94866.0,0.10429976]
[1736336250659,0.52703,94867.0,94866.0,0.10429976]
[1736336251081,0.52703,94867.0,94866.0,0.13581274]
[1736336251298,0.52703,94867.0,94866.0,0.10429976]
[1736336251504,0.52703,94867.0,94866.0,0.10480792]
[1736336252460,0.47096245,94867.0,94866.0,0.18877891]
[1736336252673,0.47096245,94867.0,94866.0,0.42027891]
[1736336252884,0.47096245,94867.0,94866.0,0.5044726]
[1736336253356,0.03857382,94867.0,94866.0,0.5044726]
[1736336253575,0.03857382,94867.0,94866.0,0.26843806]
[1736336254630,0.03957382,94867.0,94866.0,0.26843806]
[1736336254836,0.03957382,94867.0,94866.0,0.25843806]
[1736336256113,0.03957382,94867.0,94866.0,0.18447806]
[1736336256292,0.03857382,94867.0,94866.0,0.3369326]
[1736336256701,0.03957382,94867.0,94866.0,0.3369326]
[1736336257058,0.03957382,94867.0,94866.0,0.4869326]
[1736336257059,0.03857382,94867.0,94866.0,0.4869326]
[1736336257265,0.210717,94914.0,94866.0,0.4869326]
[1736336257266,0.02150546,94924.0,94890.0,0.07849454]
[1736336257475,0.02150546,94924.0,94867.0,0.10429976]
[1736336257476,0.52683,94924.0,94922.0,0.10429976]
[1736336257700,0.52683,94924.0,94923.0,0.07396]
[1736336257898,0.64833546,94924.0,94923.0,0.11017744]
[1736336258423,0.64833546,94924.0,94923.0,0.10429976]
[1736336258647,0.52683,94924.0,94923.0,0.1153175]
[1736336258861,0.33142717,94924.0,94923.0,0.34381204]
[1736336259069,0.1,94959.0,94951.0,0.210633]
[1736336259278,0.10015345,94969.0,94955.0,0.10429976]
[1736336259488,0.10015345,94969.0,94956.0,0.210623]
[1736336259489,0.52657,94959.0,94956.0,0.210623]
[1736336259691,0.52657,94959.0,94958.0,0.1827943]
[1736336259904,0.00015345,94969.0,94968.0,0.210597]
[1736336260118,0.1,95008.0,95005.0,0.210513]
[1736336260332,0.0486,95026.0,95021.0,0.210479]
[1736336260536,0.52619,95026.0,95022.0,0.19926766]
[1736336260744,0.52634325,95026.0,95023.0,0.210474]
[1736336261033,0.52634325,95026.0,95025.0,0.31476976]
[1736336261439,0.52634325,95026.0,95025.0,0.11048871]
[1736336261643,0.52634325,95026.0,95025.0,0.18440871]
[1736336261852,0.52634325,95026.0,95025.0,0.22389668]
[1736336262672,0.52634325,95026.0,95025.0,0.11048871]
[1736336262936,0.64784871,95026.0,95025.0,0.11048871]
[1736336263140,0.62634325,95026.0,95025.0,0.11048871]
[1736336263345,0.62634325,95026.0,95025.0,0.10429976]
[1736336263778,0.62634325,95026.0,94972.0,0.0811]
[1736336263779,0.1,95006.0,94998.0,0.07392]
[1736336263990,0.52619,95006.0,94999.0,0.11169176]
[1736336264208,0.1,95005.0,95004.0,0.10429976]
[1736336264423,0.62619,95005.0,95004.0,0.10429976]
[1736336264630,0.62619,95005.0,95004.0,0.11051814]
[1736336265063,0.62619,95005.0,95004.0,0.00621838]
[1736336265064,0.64769546,95005.0,95004.0,0.00621838]
[1736336265677,0.12150546,95001.0,95000.0,0.14012725]
[1736336265878,0.64901135,95001.0,95000.0,0.14012725]
[1736336266082,0.64901135,95001.0,94953.0,0.09981295]
[1736336266083,0.1,94983.0,94979.0,0.09341604]
[1736336266290,0.12150546,94981.0,94980.0,0.10429976]
[1736336266486,0.12150546,94981.0,94979.0,0.09341604]
[1736336266487,0.12150546,94980.0,94979.0,0.09341604]
[1736336266712,0.64769546,94980.0,94979.0,0.09341604]
[1736336267196,0.1,94966.0,94965.0,0.00076217]
[1736336267455,0.62619,94966.0,94965.0,0.10429976]
[1736336267684,0.62619,94966.0,94965.0,0.11057283]
[1736336267903,0.62619,94966.0,94965.0,0.10857283]
[1736336268321,0.836791,94966.0,94965.0,0.10857283]
[1736336268530,0.836791,94966.0,94965.0,0.10029976]
[1736336268758,0.62619,94966.0,94965.0,0.10029976]
[1736336269169,0.62619,94966.0,94965.0,0.09829976]
[1736336270224,0.52619,94966.0,94965.0,0.10812974]
[1736336270861,0.52619,94966.0,94965.0,0.11440281]
[1736336271700,0.52619,94966.0,94965.0,0.19289735]
[1736336271905,0.1,94992.0,94965.0,0.19289735]
[1736336272107,0.1,94992.0,94982.0,0.10429976]
[1736336272325,0.62643,94992.0,94982.0,0.10429976]
[1736336272529,0.62643,94992.0,94988.0,0.10429976]
[1736336272530,0.52643,94992.0,94988.0,0.10429976]
[1736336272750,0.52643,94992.0,94991.0,0.10429976]
[1736336273156,0.52643,94992.0,94991.0,0.11053636]
[1736336273284,0.52643,94992.0,94991.0,0.1500331]
[1736336274290,0.52643,94992.0,94991.0,0.2229131]
[1736336274655,0.52643,94992.0,94991.0,0.2239131]
[1736336275133,0.52643,94992.0,94991.0,0.1510331]
[1736336275366,0.52643,94992.0,94991.0,0.11153636]
[1736336275767,0.52643,94992.0,94991.0,0.10529976]
[1736336275995,0.52643,94992.0,94991.0,0.001]
[1736336275996,0.64793546,94992.0,94991.0,0.001]
[1736336276218,0.64793546,94992.0,94991.0,0.0072366]
[1736336276451,0.64793546,94992.0,94991.0,0.10529976]
[1736336276692,0.62643,94992.0,94991.0,0.10529976]
[1736336276887,0.62643,94992.0,94991.0,0.10429976]
[1736336277086,0.52643,94992.0,94991.0,0.10429976]
[1736336277314,0.52643,94992.0,94991.0,0.10529976]
[1736336277648,0.52643,94992.0,94991.0,0.10429976]
[1736336278103,0.52643,94992.0,94991.0,0.11472974]
[1736336278307,0.52643,94992.0,94991.0,0.11079386]
[1736336279521,0.54793546,94992.0,94991.0,0.10429976]
[1736336279693,0.1,94978.0,94972.0,0.07288]
[1736336279897,0.62643,94978.0,94973.0,0.10429976]
[1736336280167,0.62643,94978.0,94974.0,0.01771798]
[1736336280383,0.1,94976.0,94975.0,0.10429976]
[1736336280584,0.62643,94976.0,94975.0,0.10429976]
[1736336280791,0.62643,94976.0,94975.0,0.10420768]
[1736336281052,0.210606,94964.0,94955.0,0.09348543]
[1736336281256,0.210606,94964.0,94956.0,0.10429976]
[1736336281257,0.1,94957.0,94956.0,0.10429976]
[1736336281459,0.837052,94957.0,94956.0,0.11084295]
[1736336281673,0.837052,94957.0,94956.0,0.10429976]
[1736336281877,0.62643,94957.0,94956.0,0.10445321]
[1736336283099,0.64793546,94957.0,94956.0,0.00015345]
[1736336284652,0.64793546,94957.0,94956.0,0.00115345]
[1736336285189,0.64793546,94957.0,94956.0,0.00015345]
[1736336285527,0.64993546,94957.0,94956.0,0.00015345]
[1736336285767,0.54993546,94957.0,94956.0,0.00015345]
[1736336285968,0.52643,94957.0,94956.0,0.10445321]
[1736336286199,0.62643,94957.0,94956.0,0.10445321]
[1736336286450,0.64793546,94957.0,94956.0,0.00015345]
[1736336287506,0.64893546,94957.0,94956.0,0.00015345]
[1736336287910,0.64793546,94957.0,94956.0,0.00015345]
[1736336288472,0.64993546,94957.0,94956.0,0.00015345]
[1736336288684,0.64993546,94957.0,94956.0,0.10445321]
[1736336288853,0.64793546,94957.0,94956.0,0.10445321]
[1736336289281,0.64993546,94957.0,94956.0,0.00015345]
[1736336289812,0.71843546,94957.0,94956.0,0.00015345]
[1736336290016,0.71843546,94957.0,94927.0,8.52e-05]
[1736336290017,0.310685,94928.0,94927.0,8.52e-05]
[1736336290243,0.93602046,94928.0,94927.0,8.52e-05]
[1736336291311,0.93617349,94928.0,94927.0,8.52e-05]
[1736336291797,0.93617349,94928.0,94927.0,0.0010852]
[1736336292204,0.93617349,94928.0,94927.0,8.52e-05]
[1736336292612,0.93717349,94928.0,94927.0,8.52e-05]
[1736336293459,0.62758303,94928.0,94927.0,0.10438496]
[1736336293857,0.52758303,94928.0,94927.0,0.11482346]
[1736336294085,0.52758303,94928.0,94927.0,0.12052138]
[1736336294309,0.52658303,94928.0,94927.0,0.12052138]
[1736336294513,0.52658303,94928.0,94927.0,0.18300288]
[1736336294686,0.52758303,94928.0,94927.0,0.18300288]
[1736336295221,0.52658303,94928.0,94927.0,0.18300288]
[1736336295444,0.52658303,94928.0,94927.0,0.17730496]
[1736336295647,0.52658303,94928.0,94927.0,0.18300288]
[1736336296005,0.52658303,94928.0,94927.0,0.12838317]
[1736336297296,0.52658303,94928.0,94927.0,0.18300288]
[1736336297888,0.52658303,94928.0,94927.0,0.11008288]
[1736336298106,0.52658303,94928.0,94927.0,0.18300288]
[1736336298286,0.85877349,94928.0,94927.0,0.11008288]
[1736336298484,0.85877349,94928.0,94927.0,0.10438496]
[1736336299310,0.85877349,94928.0,94927.0,8.52e-05]
[1736336300897,0.52658303,94928.0,94927.0,0.10438496]
[1736336301245,0.52658303,94928.0,94927.0,0.11482346]
[1736336301366,0.52658303,94928.0,94927.0,0.18774346]
[1736336301561,0.52758303,94928.0,94927.0,0.19360654]
[1736336302248,0.52658303,94928.0,94927.0,0.11024804]
[1736336302456,0.52658303,94928.0,94927.0,0.17730496]
[1736336302677,0.52658303,94928.0,94927.0,0.11024804]
[1736336303121,0.52658303,94928.0,94927.0,0.18076804]
[1736336304596,0.52758303,94928.0,94927.0,0.18076804]
[1736336305001,0.52758303,94928.0,94927.0,0.11024804]
[1736336305202,0.62758303,94928.0,94927.0,0.11024804]
[1736336305374,0.62658303,94928.0,94927.0,0.11024804]
[1736336305614,0.64808849,94928.0,94927.0,0.11024804]
[1736336306153,0.64808849,94928.0,94927.0,0.10438496]
[1736336306667,0.52658303,94928.0,94927.0,0.10438496]
[1736336306881,0.52658303,94928.0,94927.0,0.11482346]
[1736336307120,0.52758303,94928.0,94927.0,0.11482346]
[1736336307321,0.52758303,94928.0,94927.0,0.11024804]
[1736336307521,0.52658303,94928.0,94927.0,0.10438496]
[1736336307931,0.52574555,94928.0,94927.0,0.10438496]
[1736336308429,0.64725101,94928.0,94927.0,0.10438496]
[1736336308838,0.62574555,94928.0,94927.0,0.11482346]
[1736336309039,0.52574555,94928.0,94927.0,0.11482346]
[1736336309246,0.52574555,94928.0,94927.0,0.12068654]
[1736336309454,0.52574555,94928.0,94927.0,0.11482346]
[1736336309645,0.52574555,94928.0,94927.0,0.12068654]
[1736336311117,1.10343601,94928.0,94927.0,0.00594828]
[1736336311488,0.35521946,94915.0,94914.0,0.09397028]
[1736336311689,0.22150546,94912.0,94904.0,0.2337135]
[1736336311814,0.32150546,94909.0,94908.0,0.07705825]
[1736336312022,1.0786975,94909.0,94908.0,0.07705825]
[1736336312225,0.12150546,94890.0,94889.0,8.52e-05]
[1736336312490,0.64709798,94890.0,94889.0,8.52e-05]
[1736336312924,0.54709798,94890.0,94889.0,8.52e-05]
[1736336313114,0.64709798,94890.0,94889.0,0.10429976]
[1736336313540,0.64725092,94890.0,94889.0,0.10429976]
[1736336313772,0.02150546,94864.0,94840.0,0.2947231]
[1736336313978,0.02150546,94863.0,94858.0,0.10429976]
[1736336314181,0.52559252,94863.0,94858.0,0.10429976]
[1736336314367,0.52559252,94863.0,94859.0,0.01094006]
[1736336314598,0.52559252,94863.0,94860.0,0.10429976]
[1736336314801,0.52559252,94863.0,94861.0,0.10429976]
[1736336315793,0.02150546,94858.0,94839.0,0.210883]
[1736336316004,0.02150546,94852.0,94840.0,0.12539856]
[1736336316178,0.210863,94848.0,94840.0,0.11529326]
[1736336316381,0.00131797,94847.0,94840.0,0.10429976]
[1736336316737,0.52559252,94847.0,94841.0,0.01099068]
[1736336316861,0.52559252,94847.0,94842.0,0.10429976]
[1736336317065,0.52559252,94847.0,94842.0,0.10480792]
[1736336317897,0.12150546,94843.0,94842.0,0.00050816]
[1736336318079,0.12282371,94843.0,94842.0,0.00050816]
[1736336318274,0.75271599,94843.0,94842.0,0.00050816]
[1736336318487,0.75271599,94843.0,94836.0,1e-06]
[1736336318488,0.32150546,94837.0,94836.0,1e-06]
[1736336318638,0.12150546,94813.0,94812.0,0.00076217]
[1736336318848,0.83653352,94813.0,94812.0,0.00076217]
[1736336319171,0.83653352,94813.0,94805.0,0.0001]
[1736336319172,0.1,94810.0,94805.0,0.0001]
[1736336319374,0.62559252,94810.0,94809.0,0.60429976]
[1736336319617,0.62559252,94810.0,94809.0,0.3719]
[1736336319618,0.98283348,94810.0,94809.0,0.3719]
[1736336319818,0.74729798,94810.0,94809.0,0.38121101]
[1736336319990,0.64760746,94810.0,94809.0,0.38121101]
[1736336320738,0.526102,94810.0,94809.0,0.48551077]
[1736336320950,0.526102,94810.0,94809.0,0.53407185]
[1736336321137,0.529102,94810.0,94809.0,0.60463185]
[1736336321754,0.526102,94810.0,94809.0,0.60463185]
[1736336321963,0.526102,94810.0,94809.0,0.53407185]
[1736336322108,0.526102,94810.0,94809.0,0.60463185]
[1736336322311,0.526102,94810.0,94809.0,0.53407185]
[1736336322512,0.526102,94810.0,94809.0,0.60463185]
[1736336323565,0.526102,94810.0,94809.0,0.68312639]
[1736336323762,0.526102,94810.0,94809.0,0.68412639]
[1736336323964,0.526102,94810.0,94809.0,0.55707077]
[1736336324195,0.526102,94810.0,94809.0,0.55607077]
[1736336324554,0.526102,94810.0,94809.0,0.55807077]
[1736336324992,0.526102,94810.0,94809.0,0.55607077]
[1736336326043,0.526102,94810.0,94809.0,0.76702077]
[1736336326240,0.526102,94810.0,94809.0,0.94981507]
[1736336326646,0.526102,94810.0,94800.0,0.34719705]
[1736336326865,0.4,94770.0,94747.0,0.4141112]
[1736336327077,0.4,94770.0,94725.0,0.3155133]
[1736336327078,0.611099,94742.0,94725.0,0.3155133]
[1736336327279,0.4,94726.0,94725.0,0.31368121]
[1736336327479,0.72559252,94726.0,94725.0,0.32019291]
[1736336327712,0.72559252,94726.0,94725.0,0.39491291]
[1736336327947,0.72559252,94726.0,94725.0,0.32019291]
[1736336328187,0.72559252,94726.0,94725.0,0.0065117]
[1736336328188,0.62559252,94726.0,94725.0,0.0065117]
[1736336328403,0.72610137,94726.0,94725.0,0.0065117]
[1736336328610,0.1,94724.0,94723.0,0.07482]
[1736336328814,0.52559252,94724.0,94723.0,0.10439976]
[1736336329012,0.52559252,94724.0,94723.0,0.17911976]
[1736336329293,0.007,94742.0,94727.0,0.15]
[1736336329502,0.1,94759.0,94742.0,0.15]
[1736336329740,0.1,94784.0,94758.0,0.10429976]
[1736336330007,0.19194792,94796.0,94782.0,0.10429976]
[1736336330008,0.00131895,94795.0,94782.0,0.10429976]
[1736336330236,0.00131895,94795.0,94785.0,0.2947231]
[1736336330440,0.4328669,94784.0,94783.0,0.00634824]
[1736336330641,0.4328669,94784.0,94730.0,0.211124]
[1736336330642,0.2,94745.0,94730.0,0.2947231]
[1736336330868,0.33716666,94784.0,94739.0,0.00076265]
[1736336330869,0.1,94740.0,94739.0,0.00076265]
[1736336331098,0.2328669,94745.0,94740.0,0.211104]
[1736336331210,0.2328669,94745.0,94744.0,0.10429976]
[1736336331412,0.2328669,94745.0,94744.0,1.67905976]
[1736336331862,0.2328669,94745.0,94744.0,0.17905976]
[1736336332064,0.2328669,94745.0,94744.0,0.23918654]
[1736336332293,0.17564188,94745.0,94744.0,0.43768654]
[1736336332510,0.1,94780.0,94764.0,0.211049]
[1736336332720,0.1,94814.0,94764.0,0.211049]
[1736336332721,0.203,94795.0,94780.0,0.211014]
[1736336332923,0.1,94784.0,94783.0,0.10429976]
[1736336333125,0.2,94771.0,94770.0,0.2947231]
[1736336333334,0.1,94764.0,94763.0,0.07476]
[1736336333535,0.1,94766.0,94750.0,0.2947231]
[1736336333536,0.2,94758.0,94750.0,0.2947231]
[1736336333743,0.6275,94758.0,94751.0,0.22964107]
[1736336333951,0.5275,94758.0,94751.0,0.15488107]
[1736336334160,0.5275,94758.0,94752.0,0.07476]
[1736336334371,0.00131916,94757.0,94753.0,0.31537276]
[1736336334572,0.5275,94758.0,94755.0,0.21107]
[1736336334775,0.5275,94758.0,94757.0,0.211066]
[1736336334980,0.5275,94758.0,94757.0,0.31536576]
[1736336336432,0.1482137,94758.0,94757.0,0.31496576]
[1736336336641,0.1482137,94758.0,94757.0,0.38976576]
[1736336337279,0.12638339,94758.0,94757.0,0.38976576]
[1736336337456,0.10556552,94758.0,94757.0,0.64406552]
[1736336337884,0.10656552,94758.0,94757.0,0.65106552]
[1736336338091,0.10656552,94758.0,94757.0,0.50106552]
[1736336338302,0.10656552,94758.0,94757.0,0.50642897]
[1736336338762,0.10656552,94758.0,94757.0,0.43162897]
[1736336338973,0.10656552,94758.0,94757.0,0.50642897]
[1736336339388,0.1,94800.0,94795.0,0.210981]
[1736336339592,0.00131862,94813.0,94809.0,0.21095]
[1736336339803,0.21091,94828.0,94810.0,0.17909976]
[1736336339804,0.1,94812.0,94810.0,0.17909976]
[1736336340007,0.1,94812.0,94810.0,0.18478412]
[1736336340221,0.2,94811.0,94810.0,0.10998412]
[1736336340430,0.2013186,94811.0,94810.0,0.00568436]
[1736336340650,0.1,94800.0,94792.0,0.0748]
[1736336340891,0.6286786,94811.0,94792.0,0.0748]
[1736336340892,0.2,94801.0,94795.0,0.10429976]
[1736336341131,0.00131851,94799.0,94795.0,0.10429976]
[1736336341328,0.1,94796.0,94795.0,0.10429976]
[1736336341583,0.62736,94796.0,94795.0,0.10429976]
[1736336341791,0.62736,94796.0,94795.0,0.13582844]
[1736336341970,0.1,94787.0,94786.0,0.00015226]
[1736336342174,0.72736,94787.0,94786.0,0.10445202]
[1736336342823,0.72736,94787.0,94786.0,0.00015226]
[1736336343258,0.62736,94787.0,94786.0,0.10445202]
[1736336343485,0.52736,94787.0,94786.0,0.18969722]
[1736336343904,0.52736,94787.0,94786.0,0.12091984]
[1736336344120,0.52736,94787.0,94786.0,0.11147464]
[1736336344347,0.72736,94787.0,94786.0,0.11147464]
[1736336344577,0.72736,94787.0,94786.0,0.11047464]
[1736336344578,0.52736,94787.0,94786.0,0.11047464]
[1736336344819,0.62736,94787.0,94786.0,0.10445202]
[1736336345031,0.52736,94787.0,94786.0,0.15450144]
[1736336345257,0.52736,94787.0,94786.0,0.14847882]
[1736336345474,0.52736,94787.0,94786.0,0.15450144]
[1736336346355,0.52736,94787.0,94786.0,0.14950144]
[1736336346508,0.52736,94787.0,94786.0,0.15150144]
[1736336347236,0.52736,94787.0,94786.0,0.14950144]
[1736336347458,0.52836,94787.0,94786.0,0.15450144]
[1736336347604,0.52836,94787.0,94786.0,0.19674244]
[1736336347991,0.52736,94787.0,94786.0,0.10847464]
[1736336348408,0.62736,94787.0,94786.0,0.10647464]
[1736336348824,0.52736,94787.0,94786.0,0.10647464]
[1736336349025,0.52736,94787.0,94786.0,0.10045202]
[1736336349227,0.52736,94787.0,94786.0,0.15269812]
[1736336349405,0.52736,94787.0,94786.0,0.15872074]
[1736336349617,0.54649674,94787.0,94786.0,0.16372074]
[1736336350022,0.54649674,94787.0,94786.0,0.23348074]
[1736336350580,0.54649674,94787.0,94786.0,0.23648074]
[1736336350990,0.54649674,94787.0,94786.0,0.23348074]
[1736336351217,0.52736,94787.0,94786.0,0.38338933]
[1736336351419,0.52736,94787.0,94786.0,0.46338933]
[1736336351420,0.29196448,94787.0,94786.0,0.46338933]
[1736336351629,0.26636478,94787.0,94786.0,0.51198933]
[1736336352465,0.26636478,94787.0,94786.0,0.43722933]
[1736336352671,0.26636478,94787.0,94786.0,0.50698933]
[1736336352874,0.26636478,94787.0,94786.0,0.51098933]
[1736336353249,0.24526478,94787.0,94786.0,0.51098933]
[1736336353450,0.03276478,94787.0,94786.0,0.50698933]
[1736336353932,7.8e-07,94787.0,94786.0,0.51398933]
[1736336354127,0.1,94829.0,94787.0,0.15]
[1736336354342,0.1,94831.0,94826.0,0.210912]
[1736336354550,0.1,94836.0,94831.0,0.2109]
[1736336354724,0.1,94835.0,94832.0,0.10429976]
[1736336354970,0.1,94835.0,94833.0,0.00589031]
[1736336355174,0.1,94835.0,94834.0,0.10429976]
[1736336355587,0.20182767,94835.0,94834.0,0.0058875]
[1736336355920,0.1,94819.0,94818.0,0.07476]
[1736336356143,0.1,94819.0,94818.0,0.34973219]
[1736336356359,0.1,94819.0,94818.0,0.21356219]
[1736336356562,0.1,94819.0,94818.0,0.11023229]
[1736336356563,0.72732,94819.0,94818.0,0.11023229]
[1736336356945,0.72732,94819.0,94818.0,0.10429976]
[1736336357582,0.74646077,94819.0,94818.0,0.10429976]
[1736336357993,0.310954,94807.0,94800.0,0.075]
[1736336358254,0.2,94802.0,94801.0,0.10429976]
[1736336358388,0.2,94802.0,94786.0,0.0005]
[1736336358389,0.1,94789.0,94786.0,0.0005]
[1736336358591,0.00131877,94788.0,94787.0,0.10429976]
[1736336358809,0.52732,94788.0,94787.0,0.11031956]
[1736336358998,0.52732,94788.0,94787.0,0.10429976]
[1736336359203,0.54646077,94788.0,94787.0,0.10429976]
[1736336359711,0.54661346,94788.0,94787.0,0.11031956]
[1736336359953,0.54661346,94788.0,94787.0,0.15000222]
[1736336360325,0.54661346,94788.0,94787.0,0.11031956]
[1736336360760,0.74661346,94788.0,94787.0,0.0060198]
[1736336360988,0.76961346,94788.0,94787.0,0.0060198]
[1736336361185,0.74661346,94788.0,94787.0,0.001]
[1736336361452,0.1,94765.0,94755.0,0.00076265]
[1736336361659,0.1,94765.0,94739.0,0.211105]
[1736336361660,0.1,94756.0,94754.0,0.00076265]